fUSD/lending_fUSD_20250630
["ID","MTS","AMOUNT","RATE_DAILY","PERIOD"]
[368689933,1751299833747,-540.66854897,0.000139,2]
[368689934,1751299833757,-540.66854897,0.000139,2]
[368689935,1751299833768,-540.66854897,0.000139,2]
[368689936,1751299833778,-540.66854897,0.000139,2]
[368689937,1751299833788,-235.98,0.00013908,2]
[368689938,1751299833799,-235.98,0.00013909,2]
[368689939,1751299833809,-600.16,0.00013918,2]
[368689940,1751299833819,-490.0,0.00013918,2]
[368689941,1751299833830,-490.0,0.00013918,2]
[368689942,1751299833840,-490.0,0.00013918,2]
[368689943,1751299833851,-490.0,0.00013918,2]
[368689944,1751299833861,-490.0,0.00013918,2]
[368689945,1751299833872,-490.0,0.00013918,2]
[368689946,1751299833883,-490.0,0.00013918,2]
[368689947,1751299833894,-408.17382899,0.00013918,2]
[368689948,1751299833904,-675.86,0.00013918,2]
[368689949,1751299833914,-490.0,0.00013918,2]
[368689950,1751299833924,-1614.05,0.00013918,2]
[368689951,1751299833939,-618.8,0.00013918,2]
[368689952,1751299833949,-490.0,0.00013918,2]
[368689953,1751299833960,-1298.05,0.00013918,2]
[368689954,1751299833972,-490.0,0.00013918,2]
[368689955,1751299833983,-490.0,0.00013918,2]
[368689956,1751299833994,-490.0,0.00013918,2]
[368689957,1751299834005,-490.0,0.00013918,2]
[368689958,1751299834016,-490.0,0.00013918,2]
[368689959,1751299834027,-493.92598629,0.00013918,2]
[368689960,1751299834037,-851.18,0.00013918,2]
[368689961,1751299834048,-879.1,0.00013918,2]
[368689962,1751299834058,-1189.1,0.00013918,2]
[368689963,1751299834069,-1603.78,0.00013918,2]
[368689964,1751299834079,-490.0,0.00013918,2]
[368689965,1751299834090,-678.71,0.00013918,2]
[368689966,1751299834100,-490.0,0.00013918,2]
[368689967,1751299834111,-490.0,0.00013918,2]
[368689968,1751299834121,-1172.64,0.00013918,2]
[368689969,1751299834132,-490.0,0.00013918,2]
[368689970,1751299834143,-706.52,0.00013918,2]
[368689971,1751299834153,-490.0,0.00013918,2]
[368689972,1751299834164,-490.0,0.00013918,2]
[368689973,1751299834175,-1099.73,0.00013918,2]
[368689974,1751299834186,-392.13136102,0.00013918,2]
[368689975,1751299834197,-490.0,0.00013918,2]
[368689976,1751299834207,-823.15,0.00013918,2]
[368689977,1751299834217,-1525.29,0.00013918,2]
[368689978,1751299834230,-490.0,0.00013918,2]
[368689979,1751299834240,-873.39,0.00013918,2]
[368689980,1751299834250,-490.0,0.00013918,2]
[368689981,1751299834260,-1454.62,0.00013918,2]
[368689982,1751299834270,-510.91,0.00013918,2]
[368689983,1751299834280,-490.0,0.00013918,2]
[368689984,1751299834290,-490.0,0.00013918,2]
[368689985,1751299834300,-1103.27,0.00013918,2]
[368689986,1751299834311,-490.0,0.00013918,2]
[368689987,1751299834321,-818.37,0.00013918,2]
[368689988,1751299834331,-490.0,0.00013918,2]
[368689989,1751299834341,-587.89,0.00013918,2]
[368689990,1751299834351,-764.47,0.00013918,2]
[368689991,1751299834361,-490.0,0.00013918,2]
[368689992,1751299834371,-490.0,0.00013918,2]
[368689993,1751299834393,-490.0,0.00013918,2]
[368689994,1751299834406,-573.74,0.00013918,2]
[368689995,1751299834417,-696.32,0.00013918,2]
[368689996,1751299834428,-490.0,0.00013918,2]
[368689997,1751299834439,-490.0,0.00013918,2]
[368689998,1751299834449,-490.0,0.00013918,2]
[368689999,1751299834459,-183.82241337,0.00013918,2]
[368690000,1751299834471,-659.75,0.00013918,2]
[368690001,1751299834484,-563.95,0.00013918,2]
[368690002,1751299834495,-490.0,0.00013918,2]
[368690003,1751299834506,-697.49,0.00013918,2]
[368690004,1751299834517,-490.0,0.00013918,2]
[368690005,1751299834529,-2860.48,0.00013918,2]
[368690006,1751299834541,-490.0,0.00013918,2]
[368690007,1751299834551,-896.11,0.00013918,2]
[368690008,1751299834563,-176.39844746,0.00013918,2]
[368690009,1751299834574,-1149.98,0.00013918,2]
[368690010,1751299834586,-490.0,0.00013918,2]
[368690011,1751299834597,-490.0,0.00013918,2]
[368690012,1751299834608,-490.0,0.00013918,2]
[368690013,1751299834619,-1331.12,0.00013918,2]
[368690014,1751299834630,-460.0,0.00013918,2]
[368690015,1751299834641,-490.0,0.00013918,2]
[368690016,1751299834653,-490.0,0.00013918,2]
[368690017,1751299834663,-641.09,0.00013918,2]
[368690018,1751299834674,-490.0,0.00013918,2]
[368690019,1751299834686,-490.0,0.00013918,2]
[368690020,1751299834696,-950.75,0.00013918,2]
[368690021,1751299834707,-490.0,0.00013918,2]
[368690022,1751299834718,-665.38,0.00013918,2]
[368690023,1751299834732,-761.62,0.00013918,2]
[368690024,1751299834742,-490.0,0.00013918,2]
[368690025,1751299834753,-490.0,0.00013918,2]
[368690026,1751299834763,-490.0,0.00013918,2]
[368690027,1751299834774,-1260.19,0.00013918,2]
[368690028,1751299834784,-490.0,0.00013918,2]
[368690029,1751299834796,-490.0,0.00013918,2]
[368690030,1751299834806,-2091.63,0.00013918,2]
[368690031,1751299834817,-490.0,0.00013918,2]
[368690032,1751299834833,-490.0,0.00013918,2]
[368690033,1751299834845,-490.0,0.00013918,2]
[368690034,1751299834856,-490.0,0.00013918,2]
[368690035,1751299834867,-559.15,0.00013918,2]
[368690036,1751299834878,-1437.06,0.00013918,2]
[368690037,1751299834890,-490.0,0.00013918,2]
[368690038,1751299834902,-958.46,0.00013918,2]
[368690039,1751299834914,-490.0,0.00013918,2]
[368690040,1751299834928,-490.0,0.00013918,2]
[368690041,1751299834940,-1087.55,0.00013918,2]
[368690042,1751299834951,-198.80091019,0.00013918,2]
[368690043,1751299834963,-500.0,0.00013918,2]
[368690044,1751299834977,-1434.06,0.00013918,2]
[368690045,1751299834988,-502.58,0.00013918,2]
[368690046,1751299835002,-936.07,0.00013918,2]
[368690047,1751299835013,-490.0,0.00013918,2]
[368690048,1751299835024,-815.37,0.00013918,2]
[368690049,1751299835035,-862.92,0.00013918,2]
[368690050,1751299835047,-1130.27,0.00013918,2]
[368690051,1751299835057,-490.0,0.00013918,2]
[368690052,1751299835068,-490.0,0.00013918,2]
[368690053,1751299835079,-675.07,0.00013918,2]
[368690054,1751299835090,-490.0,0.00013918,2]
[368690055,1751299835102,-490.0,0.00013918,2]
[368690056,1751299835113,-1490.23,0.00013918,2]
[368690057,1751299835125,-680.6,0.00013918,2]
[368690058,1751299835136,-490.0,0.00013918,2]
[368690059,1751299835147,-921.31,0.00013918,2]
[368690060,1751299835158,-1560.97,0.00013918,2]
[368690061,1751299835170,-1229.23,0.00013918,2]
[368690062,1751299835181,-490.0,0.00013918,2]
[368690063,1751299835192,-1500.0,0.00013918,2]
[368690064,1751299835204,-722.4,0.00013918,2]
[368690065,1751299835215,-1580.05,0.00013918,2]
[368690066,1751299835227,-490.0,0.00013918,2]
[368690068,1751299835238,-694.97,0.00013918,2]
[368690069,1751299835249,-490.0,0.00013918,2]
[368690070,1751299835259,-490.0,0.00013918,2]
[368690071,1751299835270,-490.0,0.00013918,2]
[368690072,1751299835285,-490.0,0.00013918,2]
[368690073,1751299835296,-494.46480384,0.00013918,2]
[368690074,1751299835306,-490.0,0.00013918,2]
[368690075,1751299835317,-553.94,0.00013918,2]
[368690076,1751299835328,-490.0,0.00013918,2]
[368690077,1751299835338,-490.0,0.00013918,2]
[368690078,1751299835349,-340.32641951,0.00013918,2]
[368690079,1751299835360,-1769.59,0.00013918,2]
[368690080,1751299835370,-490.0,0.00013918,2]
[368690081,1751299835380,-500.0,0.00013919,2]
[368690082,1751299835391,-500.0,0.00013919,2]
[368690083,1751299835401,-500.0,0.00013919,2]
[368690084,1751299835412,-500.0,0.00013919,2]
[368690085,1751299835423,-500.0,0.00013919,2]
[368690086,1751299835433,-500.0,0.00013919,2]
[368690087,1751299835443,-500.0,0.00013919,2]
[368690088,1751299835454,-500.0,0.00013919,2]
[368690089,1751299835464,-500.0,0.00013919,2]
[368690090,1751299835477,-500.0,0.00013919,2]
[368690091,1751299835487,-500.0,0.00013919,2]
[368690092,1751299835497,-500.0,0.00013919,2]
[368690093,1751299835506,-500.0,0.00013919,2]
[368690094,1751299835516,-500.0,0.00013919,2]
[368690095,1751299835526,-500.0,0.00013919,2]
[368690096,1751299835536,-500.0,0.00013919,2]
[368690097,1751299835546,-500.0,0.00013919,2]
[368690098,1751299835556,-500.0,0.00013919,2]
[368690099,1751299835566,-500.0,0.00013919,2]
[368690100,1751299835577,-500.0,0.00013919,2]
[368690101,1751299835589,-500.0,0.00013919,2]
[368690102,1751299835600,-500.0,0.00013919,2]
[368690103,1751299835610,-500.0,0.00013919,2]
[368690104,1751299835621,-500.0,0.00013919,2]
[368690105,1751299835631,-500.0,0.00013919,2]
[368690106,1751299835642,-500.0,0.00013919,2]
[368690107,1751299835653,-500.0,0.00013919,2]
[368690108,1751299835663,-500.0,0.00013919,2]
[368690109,1751299835673,-500.0,0.00013919,2]
[368690110,1751299835684,-500.0,0.00013919,2]
[368690111,1751299835694,-500.0,0.00013919,2]
[368690112,1751299835704,-500.0,0.00013919,2]
[368690113,1751299835716,-500.0,0.00013919,2]
[368690114,1751299835728,-500.0,0.00013919,2]
[368690115,1751299835738,-500.0,0.00013919,2]
[368690116,1751299835748,-500.0,0.00013919,2]
[368690117,1751299835759,-500.0,0.00013919,2]
[368690118,1751299835769,-500.0,0.00013919,2]
[368690119,1751299835779,-500.0,0.00013919,2]
[368690120,1751299835790,-478.4469,0.00013919,2]
[368690121,1751299835800,-1139.641,0.00013949,2]
[368690122,1751299835811,-235.98,0.00013957,2]
[368690123,1751299835823,-235.98,0.00013957,2]
[368690124,1751299835834,-235.98,0.00013957,2]
[368690125,1751299835844,-490.0,0.00013959,2]
[368690126,1751299835855,-192.96163562,0.00013959,2]
[368690127,1751299835865,-720.48,0.00013959,2]
[368690128,1751299835876,-2047.675,0.0001396,2]
[368690129,1751299835886,-642.491,0.0001396,2]
[368690130,1751299835897,-819.0,0.0001396,2]
[368690131,1751299835908,-560.0,0.0001396,2]
[368690132,1751299835920,-934.091,0.0001396,2]
[368690133,1751299835931,-688.153,0.0001396,2]
[368690134,1751299835943,-1281.0,0.0001396,2]
[368690135,1751299835954,-1679.0,0.0001396,2]
[368690136,1751299835965,-414.16245472,0.00013966,2]
[368690137,1751299835979,-500.0,0.00013966,2]
[368690138,1751299835989,-500.0,0.00013966,2]
[368690139,1751299836000,-500.0,0.00013966,2]
[368690140,1751299836011,-569.52880615,0.00013966,2]
[368690141,1751299836023,-500.0,0.00013966,2]
[368690142,1751299836033,-258.68233582,0.00013966,2]
[368690143,1751299836043,-500.0,0.00013966,2]
[368690144,1751299836053,-399.54519996,0.00013966,2]
[368690145,1751299836063,-500.0,0.00013966,2]
[368690146,1751299836074,-500.0,0.00013966,2]
[368690147,1751299836084,-500.0,0.00013966,2]
[368690148,1751299836095,-500.0,0.00013966,2]
[368690149,1751299836105,-500.0,0.00013966,2]
[368690150,1751299836115,-500.0,0.00013966,2]
[368690151,1751299836126,-619.71131735,0.00013966,2]
[368690152,1751299836136,-490.0,0.00013966,2]
[368690153,1751299836147,-490.0,0.00013966,2]
[368690154,1751299836157,-490.0,0.00013966,2]
[368690155,1751299836168,-249.658,0.00013966,2]
[368690156,1751299836178,-1176.398,0.00013966,2]
[368690157,1751299836188,-490.0,0.00013967,2]
[368690158,1751299836198,-598.69,0.00013967,2]
[368690159,1751299836209,-490.0,0.00013967,2]
[368690160,1751299836219,-490.0,0.00013967,2]
[368690161,1751299836234,-490.0,0.00013967,2]
[368690162,1751299836245,-1370.35,0.00013967,2]
[368690163,1751299836255,-994.71,0.00013967,2]
[368690164,1751299836266,-490.0,0.00013967,2]
[368690165,1751299836278,-490.0,0.00013967,2]
[368690166,1751299836288,-490.0,0.00013967,2]
[368690167,1751299836300,-370.03503391,0.00013967,2]
[368690168,1751299836310,-1391.36,0.00013967,2]
[368690169,1751299836320,-2318.68,0.00013967,2]
[368690170,1751299836330,-2748.66,0.00013967,2]
[368690171,1751299836341,-2314.84,0.00013967,2]
[368690172,1751299836351,-490.0,0.00013967,2]
[368690173,1751299836361,-490.0,0.00013967,2]
[368690174,1751299836372,-2170.28,0.00013967,2]
[368690175,1751299836382,-1991.14,0.00013967,2]
[368690176,1751299836391,-490.0,0.00013967,2]
[368690177,1751299836401,-490.0,0.00013967,2]
[368690178,1751299836411,-815.23,0.00013967,2]
[368690179,1751299836422,-2112.99,0.00013967,2]
[368690180,1751299836432,-2330.68,0.00013967,2]
[368690181,1751299836442,-490.0,0.00013967,2]
[368690182,1751299836452,-490.0,0.00013967,2]
[368690183,1751299836462,-871.21,0.00013967,2]
[368690184,1751299836474,-1301.27,0.00013967,2]
[368690185,1751299836484,-1944.08,0.00013967,2]
[368690186,1751299836494,-1382.17,0.00013967,2]
[368690187,1751299836504,-1410.18,0.00013967,2]
[368690188,1751299836514,-857.52,0.00013967,2]
[368690189,1751299836524,-1845.17,0.00013967,2]
[368690190,1751299836534,-623.87,0.00013967,2]
[368690191,1751299836545,-500.0,0.00013967,2]
[368690192,1751299836555,-490.0,0.00013967,2]
[368690193,1751299836565,-1290.17,0.00013967,2]
[368690194,1751299836575,-1762.43,0.00013967,2]
[368690195,1751299836586,-1141.89,0.00013967,2]
[368690196,1751299836597,-1097.62,0.00013967,2]
[368690197,1751299836606,-1541.22,0.00013967,2]
[368690198,1751299836616,-1854.19,0.00013967,2]
[368690199,1751299836628,-773.31,0.00013967,2]
[368690200,1751299836637,-490.0,0.00013967,2]
[368690201,1751299836647,-1317.2,0.00013967,2]
[368690202,1751299836657,-2637.16,0.00013967,2]
[368690203,1751299836667,-490.0,0.00013967,2]
[368690204,1751299836676,-490.0,0.00013967,2]
[368690205,1751299836687,-1513.81,0.00013967,2]
[368690206,1751299836696,-512.05,0.00013967,2]
[368690207,1751299836706,-1117.34,0.00013967,2]
[368690208,1751299836717,-1494.09,0.00013967,2]
[368690209,1751299836729,-2134.47,0.00013967,2]
[368690210,1751299836739,-1934.1,0.00013967,2]
[368690211,1751299836749,-490.0,0.00013967,2]
[368690212,1751299836759,-490.0,0.00013967,2]
[368690213,1751299836769,-1338.97,0.00013967,2]
[368690214,1751299836779,-2246.93,0.00013967,2]
[368690215,1751299836789,-1435.86,0.00013967,2]
[368690216,1751299836799,-2117.97,0.00013967,2]
[368690217,1751299836810,-2262.97,0.00013967,2]
[368690218,1751299836820,-650.07,0.00013967,2]
[368690219,1751299836830,-700.54,0.00013967,2]
[368690220,1751299836840,-2194.31,0.00013967,2]
[368690221,1751299836850,-490.0,0.00013967,2]
[368690222,1751299836860,-938.91,0.00013967,2]
[368690223,1751299836871,-1514.55,0.00013967,2]
[368690224,1751299836881,-4197.47,0.00013967,2]
[368690225,1751299836891,-1065.83,0.00013967,2]
[368690226,1751299836902,-1214.26,0.00013967,2]
[368690227,1751299836913,-3226.55,0.00013967,2]
[368690229,1751299836928,-1768.99,0.00013967,2]
[368690230,1751299836938,-991.5,0.00013967,2]
[368690231,1751299836948,-490.0,0.00013967,2]
[368690232,1751299836959,-1433.61,0.00013967,2]
[368690233,1751299836968,-4991.68,0.00013967,2]
[368690234,1751299836981,-1351.71,0.00013967,2]
[368690235,1751299836992,-689.69,0.00013967,2]
[368690236,1751299837002,-1695.11,0.00013967,2]
[368690237,1751299837014,-1424.69,0.00013967,2]
[368690238,1751299837025,-1838.23,0.00013967,2]
[368690239,1751299837035,-19177.59,0.00013967,2]
[368690240,1751299837045,-1357.96,0.00013967,2]
[368690241,1751299837057,-1499.46,0.00013967,2]
[368690242,1751299837072,-1968.0,0.00013967,2]
[368690243,1751299837083,-3256.64,0.00013967,2]
[368690244,1751299837093,-1612.45,0.00013967,2]
[368690245,1751299837103,-693.22,0.00013967,2]
[368690246,1751299837113,-2622.52,0.00013967,2]
[368690247,1751299837123,-2058.24,0.00013967,2]
[368690248,1751299837134,-490.0,0.00013967,2]
[368690249,1751299837144,-12105.7127224,0.00013969,2]
[368690250,1751299837154,-797.59,0.0001397,2]
[368690251,1751299837164,-490.0,0.0001397,2]
[368690252,1751299837174,-490.0,0.0001397,2]
[368690253,1751299837184,-490.0,0.0001397,2]
[368690254,1751299837194,-490.0,0.0001397,2]
[368690255,1751299837203,-507.28,0.0001397,2]
[368690256,1751299837214,-490.0,0.0001397,2]
[368690257,1751299837226,-1333.86,0.0001397,2]
[368690258,1751299837236,-490.0,0.0001397,2]
[368690259,1751299837245,-1883.5,0.0001397,2]
[368690260,1751299837256,-2430.83,0.0001397,2]
[368690261,1751299837267,-1026.2,0.0001397,2]
[368690262,1751299837276,-1298.42,0.0001397,2]
[368690263,1751299837287,-1048.52,0.0001397,2]
[368690264,1751299837297,-844.5,0.0001397,2]
[368690265,1751299837308,-9625.6,0.0001397,2]
[368690266,1751299837318,-986.31,0.0001397,2]
[368690267,1751299837329,-500.0,0.0001397,2]
[368690268,1751299837339,-7461.51,0.0001397,2]
[368690269,1751299837350,-2946.2,0.0001397,2]
[368690270,1751299837360,-3859.31,0.0001397,2]
[368690271,1751299837371,-2703.16,0.0001397,2]
[368690272,1751299837381,-1948.59,0.0001397,2]
[368690274,1751299837391,-490.0,0.0001397,2]
[368690275,1751299837402,-1227.01,0.0001397,2]
[368690276,1751299837413,-6480.55,0.0001397,2]
[368690277,1751299837423,-2583.1,0.0001397,2]
[368690278,1751299837434,-3253.62,0.0001397,2]
[368690280,1751299837444,-3584.16,0.0001397,2]
[368690281,1751299837802,-5600.64,0.0001397,2]
[368690282,1751299837813,-2139.66,0.0001397,2]
[368690283,1751299837823,-13004.73,0.0001397,2]
[368690284,1751299837834,-4671.37,0.0001397,2]
[368690285,1751299837843,-7331.07,0.0001397,2]
[368690286,1751299837853,-3885.46,0.0001397,2]
[368690287,1751299837863,-1245.24,0.0001397,2]
[368690288,1751299837873,-1536.25,0.0001397,2]
[368690289,1751299837883,-490.0,0.0001397,2]
[368690290,1751299837894,-1284.55,0.0001397,2]
[368690291,1751299837904,-2352.3,0.0001397,2]
[368690292,1751299837915,-6398.14,0.0001397,2]
[368690293,1751299837924,-6530.7,0.0001397,2]
[368690294,1751299837937,-1184.31,0.0001397,2]
[368690295,1751299837946,-9667.43,0.0001397,2]
[368690296,1751299837956,-2006.45,0.00013971,2]
[368690297,1751299837967,-2521.77,0.00013971,2]
[368690298,1751299837978,-2325.93,0.00013971,2]
[368690299,1751299837988,-2621.51,0.00013971,2]
[368690300,1751299837998,-490.0,0.00013971,2]
[368690301,1751299838009,-951.74,0.00013971,2]
[368690302,1751299838019,-2196.99,0.00013971,2]
[368690303,1751299838029,-2341.95,0.00013971,2]
[368690304,1751299838040,-490.0,0.00013971,2]
[368690305,1751299838050,-2152.48,0.00013971,2]
[368690306,1751299838060,-510.0,0.00013971,2]
[368690307,1751299838070,-1715.01,0.00013971,2]
[368690308,1751299838081,-759.96,0.00013971,2]
[368690309,1751299838091,-2265.84,0.00013971,2]
[368690310,1751299838101,-982.52,0.00013971,2]
[368690311,1751299838111,-490.0,0.00013971,2]
[368690312,1751299838122,-1269.22,0.00013971,2]
[368690313,1751299838132,-1050.24,0.00013971,2]
[368690314,1751299838142,-550.0,0.00013972,2]
[368690315,1751299838153,-248.01523167,0.00013972,2]
[368690316,1751299838163,-302.70155002,0.00013972,2]
[368690317,1751299838174,-469.44263774,0.00013972,2]
[368690318,1751299838184,-490.0,0.00013972,2]
[368690322,1751299838194,-420.0,0.00013972,2]
[368690324,1751299838204,-490.0,0.00013972,2]
[368690325,1751299838214,-490.0,0.00013972,2]
[368690326,1751299838223,-490.0,0.00013972,2]
[368690327,1751299838234,-490.0,0.00013972,2]
[368690328,1751299838245,-490.0,0.00013972,2]
[368690329,1751299838254,-490.95335138,0.00013972,2]
[368690330,1751299838264,-490.0,0.00013972,2]
[368690331,1751299838274,-425.06358682,0.00013972,2]
[368690332,1751299838285,-491.39519365,0.00013972,2]
[368690333,1751299838294,-490.0,0.00013972,2]
[368690334,1751299838304,-490.0,0.00013972,2]
[368690335,1751299838314,-503.42510355,0.00013972,2]
[368690336,1751299838324,-490.7843343,0.00013972,2]
[368690337,1751299838334,-490.0,0.00013972,2]
[368690338,1751299838344,-558.4608387,0.00013972,2]
[368690339,1751299838354,-490.0,0.00013972,2]
[368690340,1751299838364,-490.0,0.00013972,2]
[368690341,1751299838374,-490.0,0.00013972,2]
[368690342,1751299838384,-490.88773328,0.00013972,2]
[368690343,1751299838394,-490.72309054,0.00013972,2]
[368690344,1751299838404,-490.0,0.00013972,2]
[368690345,1751299838414,-490.0,0.00013972,2]
[368690346,1751299838424,-200.0,0.00013972,2]
[368690347,1751299838434,-490.0,0.00013972,2]
[368690348,1751299838444,-490.0,0.00013972,2]
[368690349,1751299838454,-490.0,0.00013972,2]
[368690350,1751299838464,-490.0,0.00013972,2]
[368690351,1751299838474,-2990.18,0.00013972,2]
[368690352,1751299838485,-490.0,0.00013972,2]
[368690353,1751299838495,-490.0,0.00013972,2]
[368690354,1751299838504,-723.99,0.00013972,2]
[368690355,1751299838514,-1983.55,0.00013972,2]
[368690356,1751299838524,-2511.38,0.00013972,2]
[368690357,1751299838535,-2293.71,0.00013972,2]
[368690358,1751299838545,-896.66,0.00013972,2]
[368690359,1751299838555,-490.0,0.00013972,2]
[368690360,1751299838564,-1376.17,0.00013972,2]
[368690361,1751299838574,-1620.12,0.00013972,2]
[368690362,1751299838584,-944.15,0.00013972,2]
[368690363,1751299838595,-676.45,0.00013972,2]
[368690364,1751299838605,-502.71,0.00013972,2]
[368690365,1751299838615,-822.82,0.00013972,2]
[368690366,1751299838625,-490.0,0.00013972,2]
[368690367,1751299838634,-490.0,0.00013972,2]
[368690368,1751299838644,-490.0,0.00013972,2]
[368690369,1751299838655,-1857.82,0.00013972,2]
[368690370,1751299838664,-571.94,0.00013972,2]
[368690371,1751299838674,-1360.74,0.00013972,2]
[368690372,1751299838683,-1341.97,0.00013972,2]
[368690373,1751299838693,-1812.92,0.00013972,2]
[368690374,1751299838703,-1456.98,0.00013972,2]
[368690375,1751299838712,-490.0,0.00013972,2]
[368690376,1751299838722,-2599.75,0.00013972,2]
[368690377,1751299838734,-490.0,0.00013972,2]
[368690379,1751299838744,-2323.19,0.00013972,2]
[368690381,1751299838754,-918.72,0.00013972,2]
[368690383,1751299838764,-3076.74,0.00013972,2]
[368690385,1751299838774,-1294.96,0.00013972,2]
[368690387,1751299838784,-638.55,0.00013972,2]
[368690389,1751299838794,-500.50157012,0.00013973,2]
[368690391,1751299838804,-500.0,0.00013973,2]
[368690393,1751299838814,-500.78040958,0.00013973,2]
[368690395,1751299838823,-500.0,0.00013973,2]
[368690397,1751299838833,-500.0,0.00013973,2]
[368690399,1751299838843,-500.0,0.00013973,2]
[368690401,1751299838852,-500.0,0.00013973,2]
[368690403,1751299838862,-159.75213259,0.00013973,2]
[368690404,1751299838872,-500.0,0.00013973,2]
[368690407,1751299838882,-500.0,0.00013973,2]
[368690408,1751299838892,-500.0,0.00013973,2]
[368690411,1751299838902,-603.1706661,0.00013973,2]
[368690412,1751299838912,-501.21886395,0.00013973,2]
[368690414,1751299838922,-504.03476298,0.00013973,2]
[368690416,1751299838933,-500.45076342,0.00013973,2]
[368690418,1751299838943,-506.83460816,0.00013973,2]
[368690421,1751299838953,-500.0,0.00013973,2]
[368690423,1751299838963,-500.0,0.00013973,2]
[368690425,1751299838975,-500.0,0.00013973,2]
[368690426,1751299838984,-500.0,0.00013973,2]
[368690428,1751299838995,-500.0,0.00013973,2]
[368690429,1751299839005,-501.26233384,0.00013973,2]
[368690430,1751299839015,-456.34700664,0.00013973,2]
[368690431,1751299839025,-500.0,0.00013973,2]
[368690432,1751299839036,-500.0,0.00013973,2]
[368690433,1751299839046,-270.04865097,0.00013975,2]
[368690434,1751299839057,-500.0,0.00013975,2]
[368690435,1751299839068,-870.38,0.00013976,2]
[368690436,1751299839078,-490.0,0.00013976,2]
[368690437,1751299839089,-500.0,0.00013976,2]
[368690438,1751299839099,-134027.15,0.00013976,2]
[368690439,1751299839110,-7060.37,0.00013976,2]
[368690440,1751299839120,-500.0,0.00013977,2]
[368690441,1751299839130,-500.0,0.00013977,2]
[368690442,1751299839140,-10421.2207154,0.00013978,2]
[368690443,1751299839150,-1069.9601453,0.00013978,2]
[368690444,1751299839160,-151.0,0.00013978,2]
[368690445,1751299839170,-500.0,0.00013978,2]
[368690446,1751299839180,-275.825269,0.00013978,2]
[368690447,1751299839190,-151.0,0.00013978,2]
[368690448,1751299839200,-151.0,0.00013978,2]
[368690449,1751299839210,-151.0,0.00013978,2]
[368690450,1751299839220,-151.0,0.00013978,2]
[368690451,1751299839231,-151.0,0.00013978,2]
[368690452,1751299839241,-151.0,0.00013978,2]
[368690453,1751299839250,-151.0,0.00013978,2]
[368690454,1751299839261,-151.0,0.00013978,2]
[368690455,1751299839271,-151.0,0.00013978,2]
[368690456,1751299839282,-151.0,0.00013978,2]
[368690457,1751299839294,-151.0,0.00013978,2]
[368690458,1751299839304,-151.0,0.00013978,2]
[368690459,1751299839314,-151.0,0.00013978,2]
[368690460,1751299839324,-151.0,0.00013978,2]
[368690461,1751299839334,-151.0,0.00013978,2]
[368690462,1751299839344,-151.0,0.00013978,2]
[368690463,1751299839354,-151.0,0.00013978,2]
[368690464,1751299839365,-203.730362,0.00013978,2]
[368690465,1751299839376,-151.905166,0.00013978,2]